Cogmind - Beta 14 @@@ ROGUE MODE // 2024.08.27 @ 19:40:18 Player: JohnnyDongs Result: Destroyed by Autobeam Turret with Autobeam Performance ------------- Evolutions (0) 0 Regions Visited (2) 400 Robots Destroyed (29) 145 Value Destroyed (752) 752 Prototype IDs (2) 40 Alien Tech Used (0) 0 Bonus (0) 0 TOTAL SCORE: 1337 Bonus ------- None Cogmind --------- Core Integrity 0/250 Matter 288/300 Energy 265/265 System Corruption 0% Temperature Cool (46) Movement Treading (240) Ox1 Location -10/Subcaves Parts ------- > --- POWER (1) -------- Improved Ion Engine > --- PROPULSION (2) --- Light Treads Improved Treads > --- UTILITY (2) ------ High-capacity Storage Unit Light Armor Plating > --- WEAPON (2) ------- Medium Laser Subdweller Machine Gun > --- INVENTORY (20) --- Subdweller Power Source Improved Treads Improved Treads Improved Treads Improved Heat Sink Large Matter Pod (150) Structural Scanner Improved Terrain Scanner Seismic Detector Heavy Assault Rifle Grenade Launcher Subdweller Shrapnel Launcher Mining Laser Peak State ------------ > --- POWER ------------ Improved Ion Engine > --- PROPULSION ------- Light Treads Light Treads > --- UTILITY ---------- Large Storage Unit Improved Terrain Scanner > --- WEAPON ----------- Heavy Assault Rifle Heavy Assault Rifle > --- INVENTORY -------- Improved Ion Engine Light Treads Improved Treads Improved Treads Improved Treads Improved Treads Improved Heat Sink Structural Scanner Seismic Detector Light Armor Plating Medium Laser Grenade Launcher Mining Laser [Rating: 14] Favorites ----------- Power Improved Ion Engine Engine Improved Ion Engine Propulsion Light Treads Treads Light Treads Utility Improved Terrain Scanner Device Improved Terrain Scanner Storage Large Storage Unit Processor Signal Interpreter Protection Light Armor Plating Weapon Heavy Assault Rifle Energy Gun Small Laser Ballistic Gun Heavy Assault Rifle Launcher Grenade Launcher Special Weapon Mining Laser Build | -11 -10 -10 ------- Run | Yrd Mat Sub Slots Evolved . | . . . Power . | . . . Propulsion . | . . . Utility . | . . . Weapon . | . . . Parts Attached 23 | 7 12 4 Power 3 | 1 1 1 Engine 3 | 1 1 1 Core . | . . . Reactor . | . . . Propulsion 4 | 2 1 1 Treads 4 | 2 1 1 Leg . | . . . Wheel . | . . . Hover . | . . . Flight . | . . . Utility 6 | 2 3 1 Device 2 | 2 . . Storage 2 | . 2 . Processor 1 | . 1 . Hackware . | . . . Protection 1 | . . 1 Artifact . | . . . Weapon 10 | 2 7 1 Energy Gun 5 | 2 3 . Energy Cannon . | . . . Ballistic Gun 3 | . 2 1 Ballistic Cannon . | . . . Launcher 1 | . 1 . Special Weapon 1 | . 1 . Impact Weapon . | . . . Slashing Weapon . | . . . Piercing Weapon . | . . . Special Melee Weapon . | . . . Unidentified Prototypes . | . . . Parts Lost 3 | . 1 2 Power 1 | . . 1 Propulsion 2 | . 1 1 Utility . | . . . Weapon . | . . . Highest Loss Streak 2 | . 1 2 To Critical Strikes . | . . . Average Slot Usage (%) 99 | . 99 99 Engine 13 | . 13 14 Treads 27 | . 27 28 Device 10 | . 11 . Storage 11 | . 10 14 Processor 6 | . 5 10 Energy Gun 5 | . 4 14 Ballistic Gun 21 | . 22 13 Peak Build Rating 14 | 9 14 12 Average Rating 11 | 6 11 11 On Entrance 6 | . 9 11 Naked Turns . | . . . Heaviest Build 56 | 9 52 56 Greatest Support 43 | 40 40 43 Greatest Overweight (x) 1 | 1 1 1 Average Overweight (x) . | . . 1 Largest Inventory Capacity 20 | 5 20 20 Average Capacity 13 | 5 13 20 Most Carried 15 | . 15 15 Average Carried 9 | . 10 13 Final Capacity 20 | 5 20 20 Final Carried 14 | . 14 13 Class Distribution -------------------- 100% | Mutant Dominant Class ---------------- Mutant | -10/Materials Mutant | -10/Subcaves Resources | -11 -10 -10 ----------- Run | Yrd Mat Sub Matter Collected 891 | 270 547 74 Remotely . | . . . Salvage Created 1031 | 211 694 126 Parts 63 | 16 37 10 Haulers Intercepted 2 | . 2 . Recyclers Shooed . | . . . Parts Field Recycled . | . . . Retrieved Matter . | . . . Parts Self-Destructed 7 | . . 7 Prevented . | . . . Kills | -11 -10 -10 ------- Run | Yrd Mat Sub Combat Hostiles Destroyed 16 | . 13 3 Guns 16 | . 13 3 Classes Destroyed 8 | 2 4 2 Builder 1 | . 1 . Tunneler 5 | 5 . . Hauler 2 | . 2 . Recycler 1 | 1 . . Turret 1 | . . 1 Watcher 3 | . 3 . Grunt 13 | . 13 . Subdweller 3 | . . 3 Best Kill Streak 3 | 2 3 3 Combat Bots Only 3 | . 3 3 Max Kills in Single Turn 1 | 1 1 1 Gunslinging . | . . . Exploded . | . . . Melee . | . . . Uniques/NPCs Destroyed . | . . . Combat | -11 -10 -10 -------- Run | Yrd Mat Sub Hostile Shots Fired 133 | . 59 74 Missed 39 | . 15 24 Damage Taken 1216 | . 636 580 Core 254 | . 132 122 Absorbed by Shields . | . . . Regen/Repaired (Parts) 107 | . 107 . Core Remaining (%) 100 | 100 . . Volleys Fired 94 | 15 66 13 Largest 2 | 2 2 2 Hottest 100 | 80 100 80 Shots Fired 181 | 30 125 26 Gun 174 | 30 118 26 Cannon . | . . . Launcher . | . . . Special 7 | . 7 . Kinetic 116 | . 103 13 Thermal 65 | 30 22 13 Explosive . | . . . Electromagnetic . | . . . Robot Hit Streak 11 | 6 11 7 Robot Miss Streak 4 | 3 4 2 Penetration Max . | . . . Secondary Targets . | . . . Shots Hit Robots 115 | 18 78 19 Core Hits 46 | 7 31 8 Critical Kills . | . . . Critical Parts Destroyed 1 | . 1 . Critical Strikes 2 | . 1 1 Burn 1 | . . 1 Destroy 1 | . 1 . Melee Attacks . | . . . Impact . | . . . Slashing . | . . . Piercing . | . . . Sneak Attacks . | . . . Combat Hostiles . | . . . Follow-up Attacks . | . . . Damage Inflicted 1668 | 200 1184 284 Guns 1656 | 200 1172 284 Cannons . | . . . Explosions . | . . . Melee . | . . . Ramming 12 | . 12 . Kinetic 1218 | . 1059 159 Thermal 438 | 200 113 125 Explosive . | . . . Electromagnetic . | . . . Impact . | . . . Slashing . | . . . Piercing . | . . . Highest Corruption . | . . . Average Corruption . | . . . Corruption Purged . | . . . Corruption Blocked . | . . . Overload Shots . | . . . Overflow Damage . | . . . Projectiles . | . . . Explosions . | . . . Melee . | . . . Knockbacks . | . . . Impact . | . . . Kinetic . | . . . Secondary . | . . . Self-Inflicted Damage . | . . . Shots . | . . . Rammed 3 | . 3 . Targets Rammed 4 | . 4 . Kicked . | . . . Crushed 1 | . 1 . Highest Temperature 135 | 72 135 44 Average Temperature 34 | 31 36 18 Received Heat Transfer 618 | . 366 252 Siege Activations . | . . . Robots Corrupted . | . . . Combat Hostiles . | . . . Parts Fried . | . . . Impact Corruptions . | . . . Robots Melted . | . . . Combat Hostiles . | . . . Parts Melted 1 | . . 1 Heat Transferred 1227 | 450 333 444 Parts Sabotaged . | . . . Parts Stolen . | . . . Parts Stripped . | . . . Power Chain Reactions . | . . . Alert | -11 -10 -10 ------- Run | Yrd Mat Sub Peak Influence 169 | 30 169 . Initial 19 | . 19 . Average 88 | 14 98 . Maximum Alert Level . | . . . Low Security (%) 100 | 100 100 . Level 1 . | . . . Level 2 . | . . . Level 3 . | . . . Level 4 . | . . . Level 5 . | . . . High Security . | . . . Max Security . | . . . Squads Dispatched 2 | . 2 . Investigation 1 | . 1 . Extermination . | . . . Reinforcement 1 | . 1 . Assault . | . . . Garrison . | . . . Intercept . | . . . Searches Triggered . | . . . Construction Impeded . | . . . Haulers Reinforced . | . . . Active Scanning Responses . | . . . Cargo Convoy Interrupts . | . . . Stealth | -11 -10 -10 --------- Run | Yrd Mat Sub Distress Signals 1 | . 1 . Communications Jammed . | . . . Distress Signals . | . . . Times Spotted 27 | . 20 7 Peak Tracking Total 4 | . 3 4 Tactical Retreats 2 | . 1 1 Traps | -11 -10 -10 ------- Run | Yrd Mat Sub Traps Triggered 1 | . 1 . Indirectly . | . . . Trap Hack Attempts . | . . . Triggered . | . . . Disarmed . | . . . Reprogrammed . | . . . Reused . | . . . Traps Extracted . | . . . Installed . | . . . Triggered . | . . . Machines | -11 -10 -10 ---------- Run | Yrd Mat Sub Machines Disabled 1 | . 1 . Max in Single Turn 1 | . 1 . Machines Repaired . | . . . Machines Dismantled . | . . . Machines Sabotaged . | . . . Overloaded Fab Kills . | . . . Hacking | -11 -10 -10 --------- Run | Yrd Mat Sub Machines Accessed 7 | . 7 . Terminals 5 | . 5 . Fabricators . | . . . Repair Stations 1 | . 1 . Recycling Units 1 | . 1 . Scanalyzers . | . . . Garrison Access . | . . . Total Hacks 26 | . 26 . Successful 13 | . 13 . Failed 13 | . 13 . Catastrophic . | . . . Database Lockouts . | . . . Manual 17 | . 17 . Terminals 21 | . 21 . Fabricators . | . . . Repair Stations 3 | . 3 . Recycling Units 2 | . 2 . Scanalyzers . | . . . Garrison Access . | . . . Terminal Hacks 2 | . 2 . Robot Analysis 1 | . 1 . Prototype ID Bank 1 | . 1 . Fabricator Hacks . | . . . Repair Station Hacks 2 | . 2 . Scan Component 1 | . 1 . Repair 1 | . 1 . Recycling Unit Hacks 1 | . 1 . Report Inventory 1 | . 1 . Scanalyzer . | . . . Garrison Access Hacks . | . . . Unauthorized Hacks 8 | . 8 . Terminals 8 | . 8 . Botnet 4 | . 4 . Operators 1 | . 1 . Skim 3 | . 3 . Fabricators . | . . . Repair Stations . | . . . Recycling Units . | . . . Scanalyzers . | . . . Garrison Access . | . . . Data Cores Recovered . | . . . Used . | . . . Hacking Detections 7 | . 7 . Full Trace Events 1 | . 1 . Feedback Events . | . . . Feedback Blocked . | . . . Robot Schematics Acquired . | . . . Robots Built . | . . . Authchips . | . . . Time . | . . . Total Robot Build Rating . | . . . Part Schematics Acquired . | . . . Parts Built . | . . . Authchips . | . . . Time . | . . . Total Part Build Rating . | . . . Parts Repaired 1 | . 1 . Time 32 | . 32 . Parts Recycled . | . . . Recycled Matter . | . . . Retrieved Matter . | . . . Retrieved Components . | . . . Parts Scanalyzed . | . . . Part Schematics Acquired . | . . . Parts Damaged . | . . . Bothacking | -11 -10 -10 ------------ Run | Yrd Mat Sub Used RIF Installer . | . . . Robots Hacked . | . . . Non-combat . | . . . Combat . | . . . Robot Hacks Applied . | . . . Relay Couplers Released . | . . . Fabnet Peak Effective % . | . . . Robots Rewired . | . . . Allies Hacked . | . . . Hacks Repelled . | . . . Allies | -11 -10 -10 -------- Run | Yrd Mat Sub Total Allies . | . . . Largest Group . | . . . Highest-Rated Group . | . . . Highest-Rated Ally . | . . . Total Orders . | . . . Ally Attacks . | . . . Total Damage . | . . . Kills . | . . . Allies Corrupted . | . . . Allies Melted . | . . . Intel | -11 -10 -10 ------- Run | Yrd Mat Sub Robot Analysis Total 1 | . 1 . Derelict Logs Recovered . | . . . Drone Launches . | . . . Drone Recoveries . | . . . Exploration | -11 -10 -10 ------------- Run | Yrd Mat Sub Turns Passed 1506 | 161 1181 164 Spaces Moved 623 | 69 507 47 Core 5 | 5 . . Treads 618 | 64 507 47 Legs . | . . . Wheels . | . . . Hover . | . . . Flight . | . . . Fastest Speed 50 | 50 160 240 Average Speed 174 | 154 171 240 Slowest Speed 240 | 160 240 240 Overloaded Moves . | . . . Propulsion Burnouts . | . . . Robots Hopped . | . . . Cave-ins Triggered . | . . . Exploration Rate (%) 31 | 5 84 6 Regions Visited 2 Branch Regions 1 Pre-discovered Areas . | . . . Known Exits Taken 1 | . 1 . Unknown Exits Taken 1 | 1 . . Scrap Searched . | . . . Spaces Dug . | . . . Terrain Destroyed . | . . . Melee . | . . . Projectile . | . . . AOE . | . . . Terrain Rammed . | . . . Walls Destroyed . | . . . Machines Disabled . | . . . Actions | -11 -10 -10 --------- Run | Yrd Mat Sub Total 842 | 90 677 75 Wait 70 | . 64 6 Move 621 | 68 506 47 Hop . | . . . Pick Up 21 | . 18 3 Fast Attach 11 | 7 4 . Attach 7 | . 3 4 Detach . | . . . Swap 5 | . 5 . Drop 9 | . 7 2 Fire 94 | 15 66 13 Melee . | . . . Ram . | . . . Kick . | . . . Crush 4 | . 4 . Escape Stasis . | . . . Rewire . | . . . Trap . | . . . Miscellaneous . | . . . Route ------- -11/Scrapyard -10/Materials (discovered 5 exits: *Mat x2 / *Min x2 / *Sub) -10/Subcaves (discovered 1 exit: [*Rec]) History --------- Turn | Location | Event 6 | -11/Scrapyard | Discovered new exit (range 15) 162 | -11/Scrapyard | Entered Materials 306 | -10/Materials | Build established: Mutant 439 | -10/Materials | Discovered new exit (range 7) 613 | -10/Materials | Discovered new exit (range 8) 854 | -10/Materials | Discovered new exit (range 12) 882 | -10/Materials | Identified exit to Mines 997 | -10/Materials | Core integrity fell below 50% 1052 | -10/Materials | Repaired Hvy. Assault Rifle 1076 | -10/Materials | Discovered new exit (range 15) 1190 | -10/Materials | Identified exit to Materials 1335 | -10/Materials | Discovered new exit (range 2) 1339 | -10/Materials | Identified exit to Subcaves 1343 | -10/Materials | Entered Subcaves 1489 | -10/Subcaves | Discovered new exit (range 13) 1496 | -10/Subcaves | Core integrity fell below 20% 1507 | -10/Subcaves | Destroyed by Autobeam Turret with Autobeam Last Messages --------------- to Scrap Shield. 01433_ Disposable Heat Sink melted. 01433_ AM-MVY(R) destroyed. 01436_ Subatomizers dissect the Sub. Monowheel. 01439_ Acquired Sub. Power Source. 01440_ Acquired 34 matter. 01442_ Acquired 20 matter. 01448_ Subatomizers dissect the Sub. Monowheel. 01449_ Acquired Sub. Machine Gun. 01451_ RH-1TM(R) destroyed. 01456_ Acquired Sub. Shrapnel Launcher. 01459_ Dropped Hvy. Assault Rifle. 01461_ Acquired 10 matter. 01461_ Discarded Signal Interpreter. 01463_ Acquired 10 matter. 01472_ Subatomizers dissect the Disposable Heat Sink. 01489_ EXIT=FOUND 01506_ Destroyed Autobeam. 01506_ Autobeam Turret destroyed. Map ----- +----------------------------------------------------+ | ?????????????????????????????????????????????????? | | ?????????????????????????????????????????????????? | | ?????????????????????????????????????????????????? | | ?????????????????????????????????????????????????? | | ?????????????????????????????????????????????????? | | ?????????????????????????????????????????????????? | | ?????????????????????????????????????????????????? | | ?????????????????????????????????????????????????? | | ?????????????????????????????????????????????????? | | ?????????????????????????????????????????????????? | | ?????????????????????????????????????????????????? | | ?????????????????????????????????????????????????? | | ?????????????????????????????????????????????????? | | ?????????????????????????????????????????????????? | | ?????????????????????????????????????????????????? | | ?????????????????????????????????????????????????? | | ???????????????????????????###???????????????????? | | ???????????????????????#### ???????????????????? | | ???????????????????????? |????????????????????? | | ???????????????????????? ????????????????????? | | ?????????????#"""???????# O#????????????????????? | | ?????????????#"% ?????# #????????????????????? | | ?????????????#" ##### #????????????????????? | | ?????????????#""t ##???????????????????? | | ????????????#< % #??###??????????????? | | ?????????????#"" % @ #? ???????????????? | | ?????????????#" ###### ## ????????????????? | | ????????????????????????## ## ##????????????????? | | ???????????????????????## # #????????????????? | | ??????????????????????## #????????????????? | | ??????????????????????# " ###????????????????? | | ??????????????##?####?# #??????????????????? | | ???####???????# ## ### #??????????????????? | | ??## ########## " " " ##?????????????????? | | ### ## ##" = #?????????????????? | | # [%& #"" #?????????????????? | | ## * ! ##"" #?????????????????? | | #### &&& ###?" ????????????????? | | #???## ## "" #?"" #???????????????? | | #?????###### & ##??" #???????????????? | | ???????????## #" !=" "# #????? ???????????????? | | ????????????####" ### " #????#?% ??????????????? | | ???????????????## #? "" ???????#?????????????? | | ???????????????? #????????????????????? | | ??????????????? % ### ???????????????????? | | ?????????????? ##?? ??????????????????? | | ?????????????? #????###?????????????????? | | ????????????? %% #????????????????????????? | | ????????????? ????????????????????????? | | ????????????## # #???????????????????????? | +----------------------------------------------------+ Best States ------------- Heat Dissipation 25 Energy Generation 12 Energy Capacity 265 Matter Stores 300 Matter Capacity 300 Sight Range 16 Terrain Scan Range 16 Terrain Scan Density 10 Armor Coverage 150 Evasion (%) 40 Recoil Reduction 2 Item Schematics ----------------- None Robot Schematics ------------------ None Fabricated ------------ Nothing Alien Tech Used ----------------- None Achievements -------------- None Challenges ------------ None Game ------ Seed RestorationCouplerWand Manual? 0 Play Time 00:20:18 Cumulative 37.9 hours Start 2024.08.26 @ 18:53:29 End 2024.08.27 @ 19:40:18 Sessions 2 Manual Loads 0 Difficulty Rogue Special Mode None Game No. 27 Rogue 27 Adventurer 0 Explorer 0 Win Type - Total 0 Types 0/0/0/0/0/0/0/0/0 Lore% 15 Gallery% 31 Achievement% 32 Wizard Run 0 Options --------- Layout 1 ASCII 0 Keyboard 0 Movement Numpad Keybinds 0 Fullscreen 1 Font 24/Smallcaps Map View 50x35 Zoom Use 0% Tactical HUD 1 Map Filters NONE Filters NONE Steam 1 RUN: 676cff74-35c2-49df-b937-dd4a24776b87